bitfinex/quotes_BTCUSD_20230115
["timestamp","ask_amount","ask_price","bid_price","bid_amount"]
[1673766820067,0.96833781,20687.0,20683.0,0.63608089]
[1673766820323,0.96833781,20687.0,20684.0,0.19072595]
[1673766821122,0.96833781,20687.0,20683.0,0.53901089]
[1673766821384,0.96833781,20687.0,20684.0,0.05390109]
[1673766821663,0.483372,20688.0,20684.0,0.05390109]
[1673766821913,0.483372,20688.0,20684.0,0.25462704]
[1673766822173,1.07308148,20688.0,20685.0,0.60747282]
[1673766823244,1.07308148,20688.0,20683.0,0.01118147]
[1673766823245,0.64992585,20686.0,20683.0,0.01118147]
[1673766823482,1.13334885,20686.0,20685.0,0.01]
[1673766823970,1.14493985,20686.0,20685.0,0.01]
[1673766824299,1.13334885,20686.0,20683.0,0.01118147]
[1673766824480,1.13334885,20686.0,20685.0,0.01]
[1673766824739,0.483423,20686.0,20685.0,0.08707]
[1673766824993,0.483423,20686.0,20685.0,0.09707]
[1673766825238,0.65195941,20687.0,20685.0,0.09707]
[1673766825501,0.65195941,20687.0,20685.0,0.01]
[1673766825754,0.65195941,20687.0,20684.0,0.47578848]
[1673766826007,0.65195941,20687.0,20685.0,0.01]
[1673766826260,0.52958146,20686.0,20683.0,0.57446832]
[1673766826515,0.51799046,20686.0,20683.0,0.57446832]
[1673766826769,0.51799046,20686.0,20684.0,0.61370508]
[1673766827028,0.27347439,20688.0,20685.0,0.01]
[1673766827282,0.84223998,20688.0,20685.0,0.19072595]
[1673766827558,0.69906559,20688.0,20685.0,0.27228026]
[1673766827819,0.0085,20687.0,20685.0,0.08155431]
[1673766828091,0.0085,20687.0,20684.0,0.61363563]
[1673766828371,0.0085,20687.0,20685.0,0.01]
[1673766828596,0.35758397,20690.0,20686.0,0.483418]
[1673766828860,0.53795064,20689.0,20687.0,0.19072595]
[1673766829121,0.53795064,20689.0,20688.0,0.0674144]
[1673766829430,0.53795064,20689.0,20687.0,0.483389]
[1673766829633,0.53795064,20689.0,20687.0,1.00352891]
[1673766830573,0.52945064,20689.0,20687.0,0.52013991]
[1673766830840,0.35758397,20690.0,20687.0,0.52213991]
[1673766831104,0.35758397,20690.0,20688.0,0.49569381]
[1673766831105,0.56006634,20690.0,20688.0,0.49569381]
[1673766831613,0.56006634,20690.0,20687.0,0.485391]
[1673766831871,0.70324073,20690.0,20687.0,0.54947261]
[1673766832129,0.70324073,20690.0,20687.0,0.54747261]
[1673766832341,0.70324073,20690.0,20688.0,0.009]
[1673766833143,0.70324073,20690.0,20687.0,0.54747261]
[1673766833397,0.56006634,20690.0,20688.0,0.54484688]
[1673766834918,0.56006634,20690.0,20688.0,0.55384688]
[1673766835687,0.14317439,20691.0,20688.0,0.55384688]
[1673766835953,0.613045,20694.0,20689.0,0.51215495]
[1673766835954,0.53255601,20694.0,20689.0,0.51215495]
[1673766836205,0.53255601,20694.0,20690.0,0.87880495]
[1673766836445,0.64138563,20693.0,20691.0,0.321392]
[1673766836712,0.61828742,20692.0,20689.0,0.10372419]
[1673766837042,0.61828742,20692.0,20688.0,2.05860935]
[1673766837237,0.483278,20692.0,20688.0,1.57524535]
[1673766837490,0.66990218,20691.0,20688.0,1.17584535]
[1673766837753,0.66990218,20691.0,20689.0,0.66899723]
[1673766839541,1.15320718,20691.0,20689.0,0.078]
[1673766839796,0.57747723,20690.0,20689.0,0.078]
[1673766840817,0.57747723,20690.0,20688.0,1.06373564]
[1673766841080,1.06080323,20690.0,20688.0,1.06373564]
[1673766841596,1.06080323,20690.0,20689.0,0.127]
[1673766841853,1.06080323,20690.0,20688.0,1.06373564]
[1673766842116,1.06080323,20690.0,20688.0,1.18973564]
[1673766842318,1.06080323,20690.0,20688.0,1.06373564]
[1673766842616,1.06080323,20690.0,20689.0,0.008]
[1673766842866,1.06080323,20690.0,20688.0,1.06373564]
[1673766843448,1.06080323,20690.0,20688.0,1.06573564]
[1673766843679,1.05603694,20690.0,20688.0,1.1701092]
[1673766843914,1.05603694,20690.0,20689.0,0.008]
[1673766844438,0.483323,20691.0,20689.0,0.7600234]
[1673766844759,0.64138749,20692.0,20689.0,0.7520234]
[1673766844951,0.62640939,20694.0,20690.0,0.37071677]
[1673766845220,1.06753702,20694.0,20691.0,0.19072595]
[1673766845475,1.06753702,20694.0,20692.0,0.02400137]
[1673766846526,0.58430202,20694.0,20692.0,0.03400137]
[1673766849115,0.58430202,20694.0,20692.0,0.22472732]
[1673766849385,0.58430202,20694.0,20692.0,0.03400137]
[1673766849640,0.58430202,20694.0,20692.0,0.01]
[1673766851375,0.53930202,20694.0,20692.0,0.01]
[1673766851613,0.011591,20693.0,20692.0,0.01]
[1673766851863,0.53930202,20694.0,20692.0,0.60761104]
[1673766853135,0.53930202,20694.0,20692.0,0.59761104]
[1673766853390,0.19193101,20695.0,20693.0,0.61103606]
[1673766854157,0.06113101,20695.0,20693.0,0.61103606]
[1673766854404,0.06113101,20695.0,20693.0,0.61086305]
[1673766854669,0.06113101,20695.0,20694.0,0.0620863]
[1673766855229,0.06113101,20695.0,20693.0,0.56110195]
[1673766855747,0.06113101,20695.0,20694.0,0.56710039]
[1673766856313,0.06113101,20695.0,20694.0,0.88852939]
[1673766856789,0.06113101,20695.0,20694.0,0.57710039]
[1673766856792,0.06113101,20695.0,20694.0,1.06033139]
[1673766857048,0.06113101,20695.0,20694.0,1.37176039]
[1673766858065,0.06113101,20695.0,20694.0,1.44976039]
[1673766860897,0.06113101,20695.0,20694.0,1.37176039]
[1673766861153,0.06113101,20695.0,20694.0,1.49776039]
[1673766862168,0.06113101,20695.0,20694.0,1.37176039]
[1673766862419,0.06113101,20695.0,20694.0,1.44976039]
[1673766864913,0.06113101,20695.0,20694.0,1.37176039]
[1673766865145,0.06113101,20695.0,20694.0,1.49776039]
[1673766865936,0.06113101,20695.0,20694.0,1.37176039]
[1673766866173,0.06113101,20695.0,20694.0,1.44976039]
[1673766868182,0.06113101,20695.0,20694.0,1.37176039]
[1673766868430,0.06113101,20695.0,20694.0,1.49776039]
[1673766870697,0.06113101,20695.0,20694.0,1.37176039]
[1673766870957,0.06113101,20695.0,20694.0,1.44976039]
[1673766871694,0.06113101,20695.0,20694.0,1.37176039]
[1673766871943,0.06113101,20695.0,20694.0,0.448429]
[1673766872196,0.66050503,20695.0,20694.0,0.127]
[1673766872445,0.67209603,20695.0,20694.0,0.127]
[1673766872704,0.67209603,20695.0,20691.0,0.95403088]
[1673766872969,0.011591,20694.0,20691.0,0.95403088]
[1673766873223,1.62692303,20695.0,20691.0,0.47203088]
[1673766873465,0.011591,20694.0,20691.0,0.47203088]
[1673766873723,1.097181,20694.0,20688.0,3.8246]
[1673766873976,0.50074141,20693.0,20689.0,0.6309579]
[1673766874255,0.283283,20692.0,20689.0,0.6309579]
[1673766874766,0.283283,20692.0,20691.0,0.126]
[1673766875019,0.283283,20692.0,20689.0,0.6309579]
[1673766875277,0.283283,20692.0,20689.0,0.6329579]
[1673766875631,0.283283,20692.0,20688.0,0.5095]
[1673766875795,0.283283,20692.0,20689.0,0.008]
[1673766876053,0.283283,20692.0,20689.0,0.55801648]
[1673766876305,0.283283,20692.0,20689.0,0.008]
[1673766876561,0.62741892,20691.0,20689.0,0.008]
[1673766876825,1.11073792,20691.0,20689.0,0.008]
[1673766877836,1.11073792,20691.0,20689.0,0.002]
[1673766878897,0.59951489,20690.0,20689.0,0.002]
[1673766880421,0.59951489,20690.0,20687.0,0.60811642]
[1673766880707,0.59951489,20690.0,20689.0,0.008]
[1673766880942,1.08283989,20690.0,20689.0,0.008]
[1673766885898,1.09443089,20690.0,20689.0,0.008]
[1673766886148,1.025616,20690.0,20689.0,0.008]
[1673766887662,1.034116,20690.0,20689.0,0.008]
[1673766887922,1.09576486,20690.0,20689.0,0.008]
[1673766888180,1.034116,20690.0,20689.0,0.008]
[1673766889230,1.17729039,20690.0,20689.0,0.008]
[1673766890267,0.00197515,20688.0,20685.0,0.01819299]
[1673766890522,0.96679,20687.0,20685.0,0.01819299]
[1673766890768,0.011591,20686.0,20685.0,0.01819299]
[1673766891089,0.483418,20686.0,20685.0,0.01819299]
[1673766891537,0.483418,20686.0,20685.0,0.13619299]
[1673766891798,0.483418,20686.0,20685.0,0.09318614]
[1673766892068,0.483418,20686.0,20685.0,0.21118614]
[1673766892342,0.483418,20686.0,20685.0,0.13619299]
[1673766893390,1.14539341,20687.0,20685.0,0.72409245]
[1673766893659,0.48534715,20688.0,20685.0,0.72409245]
[1673766893937,0.0085,20687.0,20685.0,0.72409245]
[1673766894190,0.0085,20687.0,20686.0,0.07240924]
[1673766894456,0.00197515,20688.0,20686.0,0.73047334]
[1673766894721,0.01047515,20688.0,20686.0,0.73047334]
[1673766895267,0.53442142,20688.0,20686.0,0.7670641]
[1673766895519,0.53442142,20688.0,20686.0,0.6580641]
[1673766895773,0.53442142,20688.0,20686.0,0.7670641]
[1673766896363,0.52592142,20688.0,20686.0,0.7670641]
[1673766896612,0.52592142,20688.0,20686.0,0.6580641]
[1673766897370,0.52592142,20688.0,20686.0,0.6650641]
[1673766898638,0.52592142,20688.0,20686.0,0.007]
[1673766898937,0.4794337,20687.0,20686.0,0.007]
[1673766899913,0.4794337,20687.0,20686.0,0.00014]
[1673766900175,0.4794337,20687.0,20686.0,0.00814]
[1673766900431,0.4794337,20687.0,20686.0,0.00014]
[1673766900674,1.2744197,20687.0,20686.0,0.00714]
[1673766901743,1.52612892,20687.0,20686.0,0.00714]
[1673766902245,1.2744197,20687.0,20686.0,0.00714]
[1673766902494,1.44004958,20687.0,20686.0,0.00714]
[1673766902746,0.794986,20687.0,20686.0,0.00714]
[1673766902987,0.894986,20687.0,20686.0,0.00014]
[1673766903732,1.45459575,20687.0,20686.0,0.00014]
[1673766903989,0.97120075,20687.0,20686.0,0.00914]
[1673766904283,0.62844715,20688.0,20686.0,0.09621]
[1673766904284,0.00197515,20688.0,20686.0,0.09621]
[1673766904519,0.49712193,20688.0,20686.0,0.34710748]
[1673766904784,0.49712193,20688.0,20686.0,0.16538153]
[1673766905032,0.49712193,20688.0,20686.0,0.15638153]
[1673766905303,0.49712193,20688.0,20686.0,0.72292151]
[1673766905579,0.49712193,20688.0,20686.0,0.71392151]
[1673766905835,0.49712193,20688.0,20686.0,0.72292151]
[1673766906089,0.00197515,20688.0,20687.0,0.07321145]
[1673766906347,0.00185698,20688.0,20687.0,0.39464045]
[1673766906663,0.00185698,20688.0,20687.0,0.07321145]
[1673766906920,0.00185698,20688.0,20687.0,0.87803545]
[1673766907416,0.00185698,20688.0,20687.0,0.88503545]
[1673766907668,0.00185698,20688.0,20687.0,1.43163312]
[1673766907966,0.00185698,20688.0,20687.0,1.37169708]
[1673766908224,0.00185698,20688.0,20687.0,1.29848563]
[1673766908477,0.00185698,20688.0,20687.0,0.97705663]
[1673766910024,0.00185698,20688.0,20687.0,1.29848563]
[1673766910791,0.00185698,20688.0,20687.0,0.97705663]
[1673766911532,0.00185698,20688.0,20687.0,1.29848563]
[1673766913063,0.00185698,20688.0,20687.0,1.29648563]
[1673766913312,0.00185698,20688.0,20687.0,1.30548563]
[1673766914087,0.00185698,20688.0,20687.0,1.29648563]
[1673766914407,0.00185698,20688.0,20687.0,1.29848563]
[1673766915091,0.00185698,20688.0,20687.0,1.29648563]
[1673766915857,0.00185698,20688.0,20687.0,0.804824]
[1673766916119,0.00185698,20688.0,20687.0,1.37746211]
[1673766922422,0.00185698,20688.0,20687.0,0.813824]
[1673766922678,0.00185698,20688.0,20687.0,0.913824]
[1673766922947,0.00185698,20688.0,20687.0,2.02484381]
[1673766923191,0.00185698,20688.0,20687.0,1.88071627]
[1673766923715,0.00185698,20688.0,20687.0,2.02484381]
[1673766923991,0.00185698,20688.0,20687.0,2.15504381]
[1673766925214,0.00185698,20688.0,20687.0,2.02484381]
[1673766926572,0.56928947,20693.0,20687.0,2.02484381]
[1673766926820,0.56928947,20693.0,20688.0,0.49554295]
[1673766927145,0.56928947,20693.0,20689.0,1.47878995]
[1673766927331,0.56928947,20693.0,20690.0,0.204795]
[1673766927583,0.56928947,20693.0,20690.0,0.67404095]
[1673766927837,0.56928947,20693.0,20690.0,0.483315]
[1673766928097,0.56928947,20693.0,20691.0,0.1449987]
[1673766928348,0.56928947,20693.0,20690.0,1.10898027]
[1673766928869,0.56928947,20693.0,20690.0,1.11798027]
[1673766929123,0.04846296,20692.0,20690.0,1.11798027]
[1673766929374,0.04846296,20692.0,20691.0,0.08707]
[1673766930392,0.04846296,20692.0,20690.0,0.009]
[1673766930651,0.04846296,20692.0,20689.0,1.09570963]
[1673766930906,0.04846296,20692.0,20690.0,0.009]
[1673766931435,0.04846296,20692.0,20691.0,0.009]
[1673766931689,0.04846296,20692.0,20689.0,0.61237363]
[1673766931942,0.04846296,20692.0,20689.0,0.62137363]
[1673766932235,0.04846296,20692.0,20689.0,0.61237363]
[1673766932462,0.56662232,20692.0,20689.0,0.61237363]
[1673766932714,0.56662232,20692.0,20690.0,0.009]
[1673766932965,0.56662232,20692.0,20690.0,0.58638501]
[1673766933758,0.56662232,20692.0,20690.0,0.57738501]
[1673766934518,0.56662232,20692.0,20690.0,0.58638501]
[1673766936558,0.48775898,20691.0,20690.0,0.009]
[1673766937544,0.04846296,20692.0,20690.0,0.15987104]
[1673766937800,0.04846296,20692.0,20691.0,0.59017617]
[1673766938822,0.04846296,20692.0,20691.0,0.59917617]
[1673766940850,0.04846296,20692.0,20691.0,0.009]
[1673766942164,0.04846296,20692.0,20691.0,0.6131024]
[1673766942416,0.04846296,20692.0,20691.0,0.67441264]
[1673766944210,0.04846296,20692.0,20691.0,0.15738024]
[1673766944470,0.04846296,20692.0,20691.0,1.07119987]
[1673766945030,0.04846296,20692.0,20691.0,1.55450087]
[1673766945254,0.04846296,20692.0,20691.0,1.54550087]
[1673766945509,0.04846296,20692.0,20691.0,1.55250087]
[1673766946266,0.04846296,20692.0,20691.0,1.06919987]
[1673766946524,0.04846296,20692.0,20691.0,1.06219987]
[1673766947278,0.04846296,20692.0,20691.0,1.17119987]
[1673766947803,0.04846296,20692.0,20691.0,0.109]
[1673766948064,0.61174753,20692.0,20691.0,0.109]
[1673766948316,0.62333853,20692.0,20691.0,0.109]
[1673766948567,0.62333853,20692.0,20689.0,0.66377564]
[1673766948817,0.47590603,20691.0,20689.0,0.66377564]
[1673766949105,0.47590603,20691.0,20688.0,0.51272854]
[1673766950624,0.47590603,20691.0,20688.0,0.51972854]
[1673766952579,0.47590603,20691.0,20688.0,0.51272854]
[1673766952890,0.47590603,20691.0,20688.0,0.51472854]
[1673766953145,0.47590603,20691.0,20688.0,0.51272854]
[1673766953406,0.47590603,20691.0,20688.0,0.51972854]
[1673766954691,1.79922683,20691.0,20688.0,0.007]
[1673766954947,1.58570242,20691.0,20688.0,0.007]
[1673766955235,1.58570242,20691.0,20687.0,0.58180119]
[1673766955498,1.58570242,20691.0,20688.0,0.002]
[1673766955734,1.58570242,20691.0,20687.0,0.58180119]
[1673766956004,0.011591,20690.0,20688.0,0.007]
[1673766956270,1.800112,20691.0,20688.0,0.007]
[1673766956518,0.6267396,20690.0,20687.0,0.58180119]
[1673766957316,0.6267396,20690.0,20688.0,0.002]
[1673766957875,0.76991399,20690.0,20688.0,0.002]
[1673766958135,0.76991399,20690.0,20686.0,1.13133809]
[1673766958407,0.6267396,20690.0,20686.0,1.27546563]
[1673766958660,0.76991399,20690.0,20688.0,0.002]
[1673766958913,0.76991399,20690.0,20686.0,1.13133809]
[1673766959211,0.55141514,20689.0,20686.0,1.21633809]
[1673766959488,0.55141514,20689.0,20686.0,1.13133809]
[1673766959756,0.55141514,20689.0,20688.0,0.002]
[1673766960015,0.55141514,20689.0,20686.0,1.27546563]
[1673766961070,0.55141514,20689.0,20686.0,1.37746563]
[1673766962179,0.55141514,20689.0,20687.0,0.48217996]
[1673766964038,0.55141514,20689.0,20687.0,0.56717996]
[1673766964303,0.14317439,20691.0,20687.0,0.75790591]
[1673766964554,0.67341812,20692.0,20688.0,0.91948344]
[1673766964808,0.67341812,20692.0,20689.0,0.1065216]
[1673766965063,0.53024373,20692.0,20689.0,0.67406295]
[1673766965312,0.53024373,20692.0,20690.0,0.276429]
[1673766965573,0.53024373,20692.0,20691.0,0.204732]
[1673766965875,0.53024373,20692.0,20691.0,0.0688069]
[1673766966574,0.04846296,20692.0,20691.0,0.5521079]
[1673766966830,0.04846296,20692.0,20691.0,0.8735949]
[1673766967081,0.04846296,20692.0,20691.0,1.47788384]
[1673766967330,0.04846296,20692.0,20691.0,1.48588384]
[1673766968852,0.04846296,20692.0,20691.0,0.8815949]
[1673766969098,0.04846296,20692.0,20691.0,1.39016122]
[1673766969351,0.04846296,20692.0,20691.0,1.53478739]
[1673766969849,0.04846296,20692.0,20691.0,1.52678739]
[1673766970094,0.04846296,20692.0,20691.0,1.62778739]
[1673766970343,0.04846296,20692.0,20691.0,1.52678739]
[1673766970600,0.04846296,20692.0,20691.0,1.62778739]
[1673766974304,0.74572424,20695.0,20691.0,1.62778739]
[1673766974564,0.74572424,20695.0,20692.0,0.08685443]
[1673766974816,0.74572424,20695.0,20692.0,0.27758038]
[1673766975077,0.74572424,20695.0,20692.0,0.08685443]
[1673766975305,0.74572424,20695.0,20693.0,0.60382718]
[1673766976548,0.74572424,20695.0,20693.0,0.60582718]
[1673766976799,0.60254985,20695.0,20693.0,0.60582718]
[1673766977051,0.60254985,20695.0,20693.0,0.67463408]
[1673766977583,0.60254985,20695.0,20693.0,0.67163408]
[1673766978815,0.74572424,20695.0,20693.0,0.002]
[1673766979071,0.85749747,20694.0,20693.0,0.002]
[1673766979325,1.34072847,20694.0,20693.0,0.002]
[1673766979579,1.55513805,20694.0,20693.0,0.002]
[1673766979834,1.85513805,20694.0,20693.0,0.002]
[1673766980094,1.19739697,20694.0,20693.0,0.002]
[1673766980343,1.19765881,20694.0,20689.0,0.4692]
[1673766980596,0.24517395,20693.0,20689.0,1.10792837]
[1673766980845,0.72844195,20693.0,20689.0,1.10792837]
[1673766982110,0.62670504,20693.0,20689.0,1.10792837]
[1673766982368,0.72844195,20693.0,20689.0,1.10792837]
[1673766982641,0.57385863,20692.0,20690.0,0.48380335]
[1673766983398,0.57385863,20692.0,20690.0,0.58920369]
[1673766983893,0.57385863,20692.0,20690.0,0.48380335]
[1673766984141,0.57385863,20692.0,20690.0,0.58480335]
[1673766985376,0.57385863,20692.0,20691.0,0.07919405]
[1673766985896,0.57385863,20692.0,20691.0,0.07909]
[1673766986397,0.57385863,20692.0,20690.0,0.48380335]
[1673766986655,0.57385863,20692.0,20691.0,0.101]
[1673766987156,1.05713663,20692.0,20691.0,0.101]
[1673766988168,1.05713663,20692.0,20690.0,0.48380335]
[1673766988660,1.05713663,20692.0,20691.0,0.101]
[1673766988906,1.05713663,20692.0,20687.0,3.24282754]
[1673766989181,0.10173691,20691.0,20687.0,0.56682754]
[1673766989429,0.10173691,20691.0,20689.0,0.58457818]
[1673766989689,1.54041563,20692.0,20689.0,0.58457818]
[1673766989942,1.54041563,20692.0,20691.0,0.101]
[1673766991275,1.54041563,20692.0,20687.0,0.14412754]
[1673766991468,1.54041563,20692.0,20691.0,0.101]
[1673766992215,1.54041563,20692.0,20688.0,0.50583714]
[1673766992983,1.54041563,20692.0,20691.0,0.101]
[1673766993235,1.56943065,20692.0,20691.0,0.101]
[1673766993513,0.966557,20692.0,20691.0,0.101]
[1673766993788,0.966557,20692.0,20688.0,0.72339714]
[1673766994037,0.64392065,20691.0,20688.0,0.60683714]
[1673766994347,0.64392065,20691.0,20688.0,0.50583714]
[1673766995359,0.64392065,20691.0,20689.0,0.321487]
[1673766995598,0.64392065,20691.0,20688.0,0.60683714]
[1673766996868,0.64392065,20691.0,20689.0,0.321487]
[1673766997120,0.64392065,20691.0,20688.0,0.60683714]
[1673766997121,1.12722665,20691.0,20688.0,0.60683714]
[1673766997874,0.53979453,20690.0,20688.0,0.60683714]
[1673766999394,0.53979453,20690.0,20688.0,0.60674422]
[1673766999936,0.53979453,20690.0,20688.0,0.60174422]
[1673767000418,0.53979453,20690.0,20688.0,0.50074422]
[1673767000675,0.483306,20691.0,20688.0,0.60174422]
[1673767000935,1.0744141,20693.0,20689.0,0.98035497]
[1673767001196,1.0744141,20693.0,20690.0,0.35041995]
[1673767001458,0.5911471,20693.0,20691.0,0.321452]
[1673767001737,0.5911471,20693.0,20692.0,0.21089379]
[1673767002000,0.5911471,20693.0,20692.0,0.05121779]
[1673767002258,0.5911471,20693.0,20689.0,0.97492797]
[1673767002511,0.69288401,20693.0,20689.0,0.97492797]
[1673767002765,0.69288401,20693.0,20690.0,0.321487]
[1673767003034,0.14343704,20694.0,20691.0,0.159666]
[1673767003279,0.94446055,20694.0,20691.0,0.58541317]
[1673767003782,0.73005097,20694.0,20691.0,0.69228819]
[1673767004275,0.73005097,20694.0,20691.0,0.79428819]
[1673767005502,0.58661393,20694.0,20691.0,0.79428819]
[1673767005775,0.41893834,20695.0,20692.0,0.19082999]
[1673767006042,0.06109172,20695.0,20693.0,0.321487]
[1673767006318,0.06109172,20695.0,20694.0,0.20837531]
[1673767007631,0.06109172,20695.0,20694.0,0.21537531]
[1673767007908,0.06109172,20695.0,20694.0,0.05578631]
[1673767008453,0.06109172,20695.0,20694.0,0.95495033]
[1673767012808,0.06109172,20695.0,20694.0,0.63346333]
[1673767013062,0.06109172,20695.0,20694.0,0.58467702]
[1673767015030,0.06109172,20695.0,20694.0,0.007]
[1673767015031,0.6663516,20695.0,20694.0,0.007]
[1673767020293,0.6663516,20695.0,20694.0,0.08609]
[1673767020550,0.6663516,20695.0,20694.0,0.007]
[1673767021335,0.86637064,20695.0,20694.0,0.007]
[1673767021587,0.66346845,20694.0,20689.0,0.965825]
[1673767021839,0.64157991,20693.0,20689.0,0.4825]
[1673767022125,0.10173691,20692.0,20689.0,0.4825]
[1673767022378,0.10173691,20692.0,20689.0,0.97711134]
[1673767022907,0.483261,20693.0,20689.0,0.97711134]
[1673767023419,0.483261,20693.0,20689.0,1.07211134]
[1673767023680,0.483261,20693.0,20689.0,0.97711134]
[1673767023935,0.483261,20693.0,20689.0,1.07111134]
[1673767024472,0.59870937,20692.0,20689.0,1.07111134]
[1673767024671,0.59870937,20692.0,20690.0,0.00010405]
[1673767024960,0.59870937,20692.0,20689.0,1.07111134]
[1673767025215,0.59870937,20692.0,20689.0,0.97711134]
[1673767025472,0.59870937,20692.0,20689.0,1.07111134]
[1673767028042,0.59870937,20692.0,20689.0,1.05161934]
[1673767028330,0.59870937,20692.0,20690.0,0.56286689]
[1673767029950,0.59870937,20692.0,20690.0,0.65786689]
[1673767030206,0.66201215,20693.0,20690.0,0.65786689]
[1673767031477,0.66201215,20693.0,20690.0,0.56286689]
[1673767031743,0.68773676,20695.0,20691.0,0.19072595]
[1673767032008,0.57661014,20695.0,20691.0,0.19072595]
[1673767032257,0.57661014,20695.0,20692.0,0.50061914]
[1673767032513,0.57661014,20695.0,20692.0,0.69134509]
[1673767032764,0.57661014,20695.0,20692.0,0.50072318]
[1673767033272,0.57661014,20695.0,20692.0,0.50061914]
[1673767033273,0.65016438,20694.0,20692.0,0.50061914]
[1673767034327,0.06109172,20695.0,20692.0,1.17462109]
[1673767034592,0.06109172,20695.0,20693.0,0.321487]
[1673767034910,0.06109172,20695.0,20693.0,1.60573561]
[1673767035894,0.06109172,20695.0,20693.0,1.60873561]
[1673767036429,0.06109172,20695.0,20694.0,0.321487]
[1673767037190,0.06109172,20695.0,20693.0,1.60873561]
[1673767037540,0.06109172,20695.0,20694.0,0.58341365]
[1673767037764,0.06109172,20695.0,20694.0,0.90490065]
[1673767038025,0.06109172,20695.0,20694.0,0.58341365]
[1673767038851,0.06109172,20695.0,20694.0,0.59041365]
[1673767039649,0.06109172,20695.0,20694.0,0.91190065]
[1673767040479,0.06109172,20695.0,20694.0,0.59041365]
[1673767044384,0.06109172,20695.0,20694.0,0.91190065]
[1673767045094,0.06109172,20695.0,20694.0,0.59041365]
[1673767045425,0.06109172,20695.0,20694.0,0.91190065]
[1673767045615,0.06109172,20695.0,20694.0,0.59041365]
[1673767047561,0.06109172,20695.0,20694.0,0.91190065]
[1673767048076,0.06109172,20695.0,20694.0,0.59041365]
[1673767051492,0.06100876,20695.0,20694.0,0.59041365]
[1673767052248,0.06100876,20695.0,20694.0,0.91190065]
[1673767052770,0.06100876,20695.0,20694.0,0.59041365]
[1673767068349,0.06100876,20695.0,20694.0,0.91190065]
[1673767069079,0.06100876,20695.0,20694.0,0.59041365]
[1673767069332,0.06100876,20695.0,20694.0,0.19772595]
[1673767069578,0.06100876,20695.0,20694.0,2.81454146]
[1673767069843,0.06100876,20695.0,20694.0,3.52238042]
[1673767070105,0.06100876,20695.0,20694.0,3.51538042]
[1673767070621,0.06100876,20695.0,20694.0,3.60938042]
[1673767070885,0.06100876,20695.0,20694.0,3.26049435]
[1673767071398,0.06100876,20695.0,20694.0,3.16649435]
[1673767071658,0.06100876,20695.0,20694.0,2.96049435]
[1673767071911,0.06100876,20695.0,20694.0,2.86649435]
[1673767072183,0.06094434,20695.0,20694.0,2.96049435]
[1673767072670,0.02020349,20695.0,20694.0,3.26049435]
[1673767072928,0.02020349,20695.0,20694.0,3.73109435]
[1673767075192,0.02020349,20695.0,20694.0,3.97106564]
[1673767075454,0.02020349,20695.0,20694.0,4.18240079]
[1673767075783,0.02020349,20695.0,20694.0,3.73109435]
[1673767075980,0.02020349,20695.0,20694.0,4.57726307]
[1673767076225,0.0045795,20695.0,20694.0,5.13526307]
[1673767076476,0.0045795,20695.0,20694.0,5.54772334]
[1673767076755,0.10631641,20695.0,20694.0,4.77376079]
[1673767077029,0.0045795,20695.0,20694.0,3.17692442]
[1673767077262,0.0045795,20695.0,20694.0,3.27092442]
[1673767077503,0.0045795,20695.0,20694.0,3.17692442]
[1673767077774,0.0045795,20695.0,20694.0,2.90966327]
[1673767078016,0.0045795,20695.0,20694.0,3.17692442]
[1673767078267,0.0045795,20695.0,20694.0,3.27092442]
[1673767078550,0.0045795,20695.0,20694.0,2.81566327]
[1673767078767,0.0045795,20695.0,20694.0,3.40172442]
[1673767079016,0.0045795,20695.0,20694.0,2.95745435]
[1673767079271,0.0045795,20695.0,20694.0,3.18225435]
[1673767080016,0.0045795,20695.0,20694.0,3.08825435]
[1673767080263,0.0045795,20695.0,20694.0,3.18225435]
[1673767080733,0.0045795,20695.0,20694.0,3.5433321]
[1673767081267,0.0045795,20695.0,20694.0,3.18225435]
[1673767081519,0.0045795,20695.0,20694.0,3.77573448]
[1673767082029,0.0045795,20695.0,20694.0,3.24333267]
[1673767082289,0.0045795,20695.0,20694.0,4.0646077]
[1673767082812,0.0045795,20695.0,20694.0,3.83220589]
[1673767083348,0.0045795,20695.0,20694.0,3.70140589]
[1673767084311,0.0045795,20695.0,20694.0,3.18225435]
[1673767084592,0.0045795,20695.0,20694.0,3.59483131]
[1673767084851,0.0045795,20695.0,20694.0,3.59481135]
[1673767085087,0.0045795,20695.0,20694.0,3.18225435]
[1673767085885,0.0045795,20695.0,20694.0,3.08825435]
[1673767086365,0.00103397,20695.0,20694.0,3.08825435]
[1673767086865,0.00103397,20695.0,20694.0,3.18225435]
[1673767087367,0.00103397,20695.0,20694.0,3.27625435]
[1673767088398,0.00103397,20695.0,20694.0,3.14545435]
[1673767089932,0.00103397,20695.0,20694.0,3.80364253]
[1673767090161,0.00329588,20697.0,20695.0,0.10188821]
[1673767090415,0.00329588,20697.0,20696.0,3.52705444]
[1673767090673,0.00419778,20699.0,20696.0,4.36074635]
[1673767090987,0.00419778,20699.0,20698.0,0.41868317]
[1673767091202,0.00419778,20699.0,20698.0,4.04956952]
[1673767091444,0.00419778,20699.0,20698.0,4.41029848]
[1673767091960,0.00419778,20699.0,20698.0,4.12171531]
[1673767092268,0.00419778,20699.0,20698.0,4.64254528]
[1673767092504,0.00419778,20699.0,20698.0,4.41014347]
[1673767092757,0.00264528,20700.0,20699.0,0.1]
[1673767093033,0.00264528,20700.0,20699.0,4.02979572]
[1673767093568,0.00264528,20700.0,20699.0,4.01346994]
[1673767093807,0.00264528,20700.0,20699.0,4.10746994]
[1673767094040,0.00264528,20700.0,20699.0,4.38068852]
[1673767094835,0.00264528,20700.0,20699.0,4.23653148]
[1673767095092,0.00254528,20700.0,20699.0,4.52495569]
[1673767095834,0.00254528,20700.0,20699.0,4.66936649]
[1673767096144,0.00254528,20700.0,20699.0,4.30863753]
[1673767096347,0.00057923,20700.0,20699.0,4.52479971]
[1673767096591,0.00057923,20700.0,20699.0,4.43079971]
[1673767096845,0.00057923,20700.0,20699.0,4.52479971]
[1673767097386,0.00057923,20700.0,20699.0,4.1423755]
[1673767097670,0.00057923,20700.0,20699.0,4.28645822]
[1673767097900,0.00057923,20700.0,20699.0,4.38045822]
[1673767098401,0.00057923,20700.0,20699.0,4.2363755]
[1673767099182,0.00057923,20700.0,20699.0,4.38047167]
[1673767099442,0.00057923,20700.0,20699.0,4.52490372]
[1673767101234,0.00057923,20700.0,20699.0,4.6694705]
[1673767101492,0.00057923,20700.0,20699.0,4.52482934]
[1673767101751,0.00057923,20700.0,20699.0,4.30874154]
[1673767102278,0.00057923,20700.0,20699.0,4.6694705]
[1673767102783,0.00057923,20700.0,20699.0,4.6692356]
[1673767103536,0.00057923,20700.0,20699.0,4.6642356]
[1673767103787,0.00057923,20700.0,20699.0,4.37604629]